bitfinex/quotes_SOLUSD_20241126
["timestamp","ask_amount","ask_price","bid_price","bid_amount"]
[1732637130595,32.97139518,228.24,228.16,32.97139518]
[1732637130796,32.97139518,228.22,228.14,32.97139518]
[1732637131003,32.97139518,228.2,228.13,1.0]
[1732637131191,32.97139518,228.14,228.13,1.0]
[1732637131903,32.97139518,228.18,228.13,1.0]
[1732637132197,4.3823,228.19,228.15,32.97139518]
[1732637132406,4.3823,228.19,228.13,33.97139518]
[1732637133103,28.158384,228.23,228.16,32.97139518]
[1732637133400,28.158384,228.23,228.14,32.97139518]
[1732637133401,32.97139518,228.22,228.14,32.97139518]
[1732637134279,32.97139518,228.2,228.13,1.0]
[1732637134493,32.97139518,228.21,228.13,33.97139518]
[1732637135381,4.3821,228.2,228.13,33.97139518]
[1732637135594,32.97139518,228.26,228.18,32.97139518]
[1732637135783,33.57139518,228.32,228.24,32.97139518]
[1732637135986,4.38,228.31,228.26,32.97139518]
[1732637136188,4.3797,228.33,228.26,32.97139518]
[1732637136503,37.34999518,228.38,228.3,32.97139518]
[1732637136884,32.97139518,228.36,228.28,32.97139518]
[1732637137080,32.97139518,228.29,228.17,20.0]
[1732637137387,4.3796,228.33,228.17,29.3826]
[1732637137610,4.3796,228.33,228.18,20.0]
[1732637137797,15.3286,228.33,228.17,24.3826]
[1732637137976,15.3286,228.33,228.14,16.4251]
[1732637138181,0.6,228.29,228.13,1.0]
[1732637138396,32.97139518,228.25,228.17,32.97139518]
[1732637138904,32.97139518,228.23,228.15,32.97139518]
[1732637139106,20.3286,228.33,228.17,32.97139518]
[1732637139107,32.97139518,228.25,228.17,32.97139518]
[1732637139403,32.97139518,228.25,228.13,5.3834]
[1732637139404,32.97139518,228.27,228.19,32.97139518]
[1732637140104,32.97139518,228.29,228.21,32.97139518]
[1732637140504,15.3307,228.3,228.23,32.97139518]
[1732637140505,4.3802,228.3,228.23,32.97139518]
[1732637140681,4.3798,228.32,228.27,32.97139518]
[1732637141390,32.97139518,228.29,228.21,32.97139518]
[1732637141605,32.97139518,228.27,228.19,32.97139518]
[1732637141902,32.97139518,228.3,228.22,32.97139518]
[1732637142106,32.97139518,228.3,228.16,4.3828]
[1732637142107,32.97139518,228.26,228.18,32.97139518]
[1732637142482,32.97139518,228.28,228.2,32.97139518]
[1732637143187,32.97139518,228.22,228.15,32.97139518]
[1732637143481,32.97139518,228.2,228.13,1.0]
[1732637143887,23.776884,228.23,228.15,32.97139518]
[1732637144496,32.97139518,228.26,228.18,32.97139518]
[1732637144813,32.97139518,228.22,228.14,32.97139518]
[1732637144988,32.97139518,228.2,228.13,1.0]
[1732637145188,4.3823,228.19,228.13,1.0]
[1732637145387,32.97139518,228.18,228.13,1.0]
[1732637146105,4.3823,228.19,228.14,32.97139518]
[1732637146610,0.6,228.29,228.14,32.97139518]
[1732637146611,32.97139518,228.24,228.16,32.97139518]
[1732637147206,10.9503,228.31,228.23,32.97139518]
[1732637147512,32.97139518,228.3,228.22,32.97139518]
[1732637147903,32.97139518,228.26,228.18,32.97139518]
[1732637148229,37.35139518,228.31,228.24,32.97139518]
[1732637148392,37.35139518,228.31,228.22,32.97139518]
[1732637148709,32.97139518,228.29,228.22,32.97139518]
[1732637149531,4.3805,228.28,228.22,32.97139518]
[1732637150027,4.3805,228.28,228.2,32.97139518]
[1732637150230,4.3805,228.28,228.22,32.97139518]
[1732637150432,32.97139518,228.31,228.22,32.97139518]
[1732637150638,32.97139518,228.33,228.24,32.97139518]
[1732637151226,32.97139518,228.33,228.16,9.3827]
[1732637151227,37.35059518,228.35,228.27,32.97139518]
[1732637151811,32.97139518,228.37,228.29,32.97139518]
[1732637152135,37.34979518,228.39,228.31,32.97139518]
[1732637152334,32.97139518,228.35,228.26,32.97139518]
[1732637152510,32.97139518,228.33,228.24,32.97139518]
[1732637152832,32.97139518,228.35,228.26,32.97139518]
[1732637153216,32.97139518,228.31,228.24,32.97139518]
[1732637153418,4.3802,228.3,228.24,32.97139518]
[1732637153617,4.3799,228.32,228.24,32.97139518]
[1732637153927,4.3799,228.32,228.26,32.97139518]
[1732637154503,4.3799,228.32,228.23,4.3815]
[1732637154504,32.97139518,228.35,228.28,32.97139518]
[1732637154724,4.3788,228.37,228.34,32.97139518]
[1732637155033,0.6,228.46,228.25,32.97139518]
[1732637155034,32.97139518,228.39,228.3,32.97139518]
[1732637155505,4.3786,228.38,228.3,32.97139518]
[1732637155711,37.34889518,228.44,228.36,32.97139518]
[1732637155913,32.97139518,228.42,228.34,32.97139518]
[1732637157020,32.97139518,228.38,228.3,32.97139518]
[1732637157205,32.97139518,228.38,228.18,5.0]
[1732637157206,32.97139518,228.34,228.28,32.97139518]
[1732637157410,32.97139518,228.38,228.3,32.97139518]
[1732637157909,32.97139518,228.4,228.32,32.97139518]
[1732637159142,4.3784,228.39,228.34,32.97139518]
[1732637159509,4.3784,228.39,228.26,4.3809]
[1732637159510,32.97139518,228.37,228.3,32.97139518]
[1732637159828,37.34979518,228.39,228.3,32.97139518]
[1732637160206,37.34979518,228.39,228.26,4.3809]
[1732637160412,4.3784,228.39,228.32,32.97139518]
[1732637160722,32.97139518,228.35,228.28,32.97139518]
[1732637160915,32.97139518,228.37,228.28,32.97139518]
[1732637161119,4.379,228.36,228.28,32.97139518]
[1732637161316,48.29369518,228.43,228.34,32.97139518]
[1732637161521,37.34909518,228.43,228.36,32.97139518]
[1732637161814,32.97139518,228.39,228.3,32.97139518]
[1732637162016,32.97139518,228.37,228.3,32.97139518]
[1732637162337,4.3775,228.44,228.36,32.97139518]
[1732637162521,10.942,228.48,228.31,43.776884]
[1732637162712,3.22779801,228.44,228.31,43.776884]
[1732637162913,3.22779801,228.47,228.4,32.97139518]
[1732637163108,4.3771,228.46,228.4,32.97139518]
[1732637163416,32.97139518,228.48,228.4,32.97139518]
[1732637163615,37.34819518,228.48,228.4,32.97139518]
[1732637163816,32.97139518,228.46,228.38,32.97139518]
[1732637164317,20.24894162,228.47,228.39,20.24894162]
[1732637164909,24.62554162,228.49,228.41,20.24894162]
[1732637165132,4.3766,228.49,228.43,20.24894162]
[1732637165740,20.24894162,228.53,228.46,20.24894162]
[1732637165961,3.21953532,228.52,228.5,20.24894162]
[1732637166119,22.07011559,228.63,228.52,20.24894162]
[1732637166428,24.010257,228.68,228.61,20.24894162]
[1732637166429,8.37244456,228.62,228.61,20.24894162]
[1732637166627,4.3734,228.66,228.61,20.24894162]
[1732637166845,7.59105147,228.68,228.61,20.24894162]
[1732637167024,4.3729,228.68,228.61,20.24894162]
[1732637167216,20.24894162,228.66,228.57,20.24894162]
[1732637167415,4.3729,228.68,228.53,15.3957]
[1732637167416,4.3729,228.68,228.61,20.24894162]
[1732637167919,4.8887833,228.7,228.65,20.24894162]
[1732637168115,0.5161833,228.7,228.65,20.24894162]
[1732637168340,0.5161833,228.7,228.65,32.82863613]
[1732637168719,0.5161833,228.7,228.63,32.82863613]
[1732637168918,4.8887833,228.7,228.63,32.82863613]
[1732637169111,0.5161833,228.7,228.63,32.82863613]
[1732637169414,0.5161833,228.7,228.67,32.82863613]
[1732637169610,0.5161833,228.7,228.69,32.82863613]
[1732637170037,0.5161833,228.7,228.62,32.82863613]
[1732637170439,0.5161833,228.7,228.64,32.82863613]
[1732637170619,0.5161833,228.7,228.66,32.82863613]
[1732637171141,0.5161833,228.7,228.68,32.82863613]
[1732637172731,0.5161833,228.7,228.69,32.82863613]
[1732637172937,0.5161833,228.7,228.69,37.20133613]
[1732637173141,0.5161833,228.7,228.68,48.22433613]
[1732637173435,0.5161833,228.7,228.68,15.3957]
[1732637173637,0.5161833,228.7,228.68,32.82863613]
[1732637174025,0.5161833,228.7,228.66,52.82863613]
[1732637174230,0.5161833,228.7,228.63,6.5084]
[1732637174438,32.82863613,228.69,228.62,32.82863613]
[1732637174740,32.82863613,228.67,228.6,32.82863613]
[1732637175121,11.4474833,228.7,228.55,6.5084]
[1732637175122,0.5161833,228.7,228.66,32.82863613]
[1732637175438,0.5161833,228.7,228.56,5.0]
[1732637175439,0.5161833,228.7,228.68,32.82863613]
[1732637175817,0.5161833,228.7,228.69,32.82863613]
[1732637176719,0.5161833,228.7,228.69,89.43415626]
[1732637176919,0.5161833,228.7,228.69,93.80685626]
[1732637177425,0.5161833,228.7,228.69,108.89145626]
[1732637178150,4.3691,228.88,228.74,23.776884]
[1732637178325,33.34481943,228.93,228.85,32.82863613]
[1732637178525,4.3683,228.92,228.85,32.82863613]
[1732637178842,32.82863613,228.87,228.79,32.82863613]
[1732637179143,4.3694,228.86,228.81,32.82863613]
[1732637179343,4.3694,228.86,228.75,20.0]
[1732637179344,32.82863613,228.91,228.83,32.82863613]
[1732637179557,37.19713613,228.91,228.83,32.82863613]
[1732637179849,4.3685,228.91,228.83,32.82863613]
[1732637180019,32.82863613,228.88,228.79,32.82863613]
[1732637180219,32.82863613,228.86,228.79,32.82863613]
[1732637180520,32.82863613,228.84,228.75,32.82863613]
[1732637180841,32.82863613,228.82,228.75,32.82863613]
[1732637181147,4.3704,228.81,228.75,32.82863613]
[1732637181448,32.82863613,228.78,228.69,15.0846]
[1732637181621,32.82863613,228.76,228.69,15.0846]
[1732637181946,32.82863613,228.72,228.64,32.82863613]
[1732637182242,32.82863613,228.76,228.68,32.82863613]
[1732637182423,32.82863613,228.78,228.7,32.82863613]
[1732637182626,32.82863613,228.78,228.68,32.82863613]
[1732637182825,23.776884,228.79,228.66,32.82863613]
[1732637182826,32.82863613,228.74,228.66,32.82863613]
[1732637183041,4.3715,228.75,228.68,32.82863613]
[1732637183282,10.926,228.81,228.7,32.82863613]
[1732637183283,4.3713,228.77,228.7,32.82863613]
[1732637183417,32.82863613,228.76,228.68,32.82863613]
[1732637183932,4.3713,228.77,228.7,32.82863613]
[1732637184543,32.82863613,228.76,228.68,32.82863613]
[1732637184924,32.82863613,228.7,228.62,32.82863613]
[1732637185122,32.82863613,228.71,228.62,32.82863613]
[1732637185343,32.82863613,228.71,228.64,32.82863613]
[1732637185543,32.82863613,228.69,228.62,32.82863613]
[1732637185848,32.82863613,228.71,228.62,32.82863613]
[1732637186645,4.3725,228.7,228.62,32.82863613]
[1732637187251,0.6,228.85,228.69,65.65727226]
[1732637187460,4.3704,228.81,228.75,32.82863613]
[1732637187625,32.82863613,228.85,228.77,32.82863613]
[1732637187829,32.82863613,228.85,228.69,32.82863613]
[1732637187830,4.3689,228.89,228.83,32.82863613]
[1732637188030,4.3689,228.89,228.85,32.82863613]
[1732637188231,4.3689,228.89,228.83,32.82863613]
[1732637189762,4.3687,228.9,228.83,32.82863613]
[1732637191041,37.19733613,228.9,228.83,32.82863613]
[1732637191339,37.19733613,228.9,228.75,15.3802]
[1732637191340,37.19733613,228.9,228.81,32.82863613]
[1732637191542,37.19733613,228.9,228.83,32.82863613]
[1732637191543,4.3687,228.9,228.83,32.82863613]
[1732637192269,52.82863613,228.92,228.85,32.82863613]
[1732637192270,4.3685,228.92,228.85,32.82863613]
[1732637192552,0.5161833,228.93,228.89,32.82863613]
[1732637192553,4.8843833,228.93,228.89,32.82863613]
[1732637192759,4.8843833,228.93,228.87,32.82863613]
[1732637193342,0.5161833,228.93,228.89,32.82863613]
[1732637193658,0.5161833,228.93,228.91,32.82863613]
[1732637193955,0.5161833,228.93,228.87,0.99869545]
[1732637193956,0.5161833,228.93,228.89,32.82863613]
[1732637195658,0.5161833,228.93,228.92,23.776884]
[1732637195867,0.5161833,228.93,228.92,0.99847732]
[1732637200157,0.5161833,228.93,228.92,24.77536132]
[1732637200655,0.5161833,228.93,228.92,61.97229745]
[1732637200957,0.5161833,228.93,228.92,66.97229745]
[1732637201166,0.5161833,228.93,228.92,61.97229745]
[1732637201459,33.34481943,228.93,228.79,32.82863613]
[1732637201644,0.5161833,228.93,228.88,32.82863613]
[1732637201838,0.5161833,228.93,228.88,33.82728795]
[1732637202350,4.8843833,228.93,228.88,0.99865182]
[1732637202555,32.82863613,228.9,228.88,0.99865182]
[1732637202755,4.3689,228.89,228.88,0.99865182]
[1732637203067,32.82863613,228.9,228.88,0.99865182]
[1732637203233,37.19743613,228.9,228.88,0.99865182]
[1732637203642,37.19743613,228.9,228.78,32.82863613]
[1732637203956,32.82863613,228.88,228.8,32.82863613]
[1732637204136,32.82863613,228.88,228.81,0.99895733]
[1732637204336,32.82863613,228.88,228.81,20.99895733]
[1732637206143,32.82863613,228.86,228.81,20.99895733]
[1732637206462,32.82863613,228.88,228.81,20.99895733]
[1732637206838,32.82863613,228.9,228.82,32.82863613]
[1732637207160,32.82863613,228.88,228.81,20.99895733]
[1732637207335,32.82863613,228.82,228.81,0.99895733]
[1732637207539,32.82863613,228.84,228.81,0.99895733]
[1732637208154,32.82863613,228.86,228.81,0.99895733]
[1732637208353,20.17458187,228.89,228.81,21.1735392]
[1732637208564,20.17458187,228.91,228.83,20.17458187]
[1732637208745,0.5161833,228.93,228.85,20.17458187]
[1732637208949,0.5161833,228.93,228.85,21.1733646]
[1732637209177,0.5161833,228.93,228.89,20.17458187]
[1732637209349,0.5161833,228.93,228.91,20.17458187]
[1732637209663,0.5161833,228.93,228.91,0.99852094]
[1732637210274,0.5161833,228.93,228.92,23.776884]
[1732637210564,0.5161833,228.93,228.92,24.77536132]
[1732637210755,0.5161833,228.93,228.92,0.99847732]
[1732637210955,4.8842833,228.93,228.92,0.99847732]
[1732637211460,0.5161833,228.93,228.92,0.99847732]
[1732637213441,0.5161833,228.93,228.92,21.17305919]
[1732637214166,0.5161833,228.93,228.92,0.99847732]
[1732637214465,0.5161833,228.93,228.92,21.17305919]
[1732637214842,0.5161833,228.93,228.92,20.99847732]
[1732637217642,0.5161833,228.93,228.92,0.99847732]
[1732637217870,0.5161833,228.93,228.92,20.99847732]
[1732637219074,0.5161833,228.93,228.92,64.94994319]
[1732637220074,0.5161833,228.93,228.92,41.17305919]
[1732637220799,0.5161833,228.93,228.92,0.99847732]
[1732637220980,4.8842833,228.93,228.92,0.99847732]
[1732637221653,48.83574917,228.93,228.92,7.732e-05]
[1732637221850,23.776884,228.92,228.78,15.1444]
[1732637222158,20.17458187,228.85,228.78,15.1444]
[1732637222355,20.17458187,228.85,228.76,20.17458187]
[1732637222356,20.17458187,228.85,228.76,24.54578187]
[1732637222669,20.17458187,228.83,228.75,6.3757]
[1732637222870,20.17458187,228.81,228.72,36.29218187]
[1732637223173,20.17458187,228.75,228.67,6.049]
[1732637223344,20.17458187,228.77,228.71,4.3723]
[1732637223547,20.17458187,228.91,228.71,4.3723]
[1732637223548,20.17458187,228.85,228.76,20.17458187]
[1732637223748,20.17458187,228.83,228.76,20.17458187]
[1732637223978,20.17458187,228.83,228.74,20.17458187]
[1732637224758,20.17458187,228.79,228.7,20.17458187]
[1732637224978,15.2931,228.86,228.66,24.54768187]
[1732637224979,20.17458187,228.75,228.66,24.54768187]
[1732637225164,20.17458187,228.75,228.68,20.17458187]
[1732637225660,20.17458187,228.75,228.68,24.54738187]
[1732637225866,20.17458187,228.77,228.68,24.54738187]
[1732637226375,20.17458187,228.73,228.66,20.17458187]
[1732637226776,20.17458187,228.73,228.64,36.29218187]
[1732637227287,20.17458187,228.66,228.58,24.54928187]
[1732637227452,20.17458187,228.66,228.57,16.1176]
[1732637227453,24.54788187,228.66,228.57,16.1176]
[1732637227659,24.54788187,228.66,228.57,20.4926]
[1732637227960,20.17458187,228.66,228.58,20.17458187]
[1732637228162,20.17458187,228.66,228.56,20.17458187]
[1732637228366,20.17458187,228.62,228.51,9.3761]
[1732637228568,20.17458187,228.66,228.58,20.17458187]
[1732637229976,24.54788187,228.66,228.58,20.17458187]
[1732637230155,24.25925827,228.65,228.57,24.25925827]
[1732637230471,24.25925827,228.69,228.61,24.25925827]
[1732637230786,24.25925827,228.75,228.65,24.25925827]
[1732637231075,24.25925827,228.81,228.73,24.25925827]
[1732637231278,24.25925827,228.83,228.75,24.25925827]
[1732637231980,24.25925827,228.83,228.75,28.63075827]
[1732637232674,24.25925827,228.91,228.75,28.63075827]
[1732637232675,27.5581833,228.93,228.77,24.25925827]
[1732637232981,24.25925827,228.87,228.79,24.25925827]
[1732637233576,24.25925827,228.87,228.79,28.62985827]
[1732637233878,24.25925827,228.89,228.81,24.25925827]
[1732637234476,28.62785827,228.91,228.83,24.25925827]
[1732637234781,24.25925827,228.89,228.79,28.62985827]
[1732637235478,29.14354157,228.93,228.85,24.25925827]
[1732637235667,24.25925827,228.9,228.81,24.25925827]
[1732637235860,24.25925827,228.92,228.85,24.25925827]
[1732637236273,24.25925827,228.92,228.79,4.3706]
[1732637236274,24.25925827,228.92,228.83,24.25925827]
[1732637236861,24.25925827,228.9,228.81,24.25925827]
[1732637237859,28.62805827,228.9,228.81,24.25925827]
[1732637238058,24.25925827,228.9,228.83,24.25925827]
[1732637238274,24.25925827,228.88,228.81,4.3703]
[1732637238566,24.25925827,228.88,228.82,20.0]
[1732637238973,24.25925827,228.9,228.81,28.62955827]
[1732637239174,24.25925827,228.88,228.81,24.25925827]
[1732637239574,24.25925827,228.88,228.81,28.62965827]
[1732637241074,24.25925827,228.9,228.81,28.62965827]
[1732637242565,24.25925827,228.9,228.83,24.25925827]
[1732637242863,24.25925827,228.92,228.83,24.25925827]
[1732637243078,0.5161833,228.93,228.87,24.25925827]
[1732637243325,0.5161833,228.93,228.85,24.25925827]
[1732637243579,24.25925827,228.92,228.83,28.62925827]
[1732637243784,24.25925827,228.88,228.84,20.0]
[1732637244086,24.25925827,228.88,228.81,24.25925827]
[1732637244269,24.25925827,228.84,228.75,28.63065827]
[1732637244475,24.25925827,228.82,228.75,28.63065827]
[1732637244664,20.0,228.9,228.79,24.25925827]
[1732637244864,24.25925827,228.88,228.79,24.25925827]
[1732637245585,0.5161833,228.93,228.75,15.3003]
[1732637245586,24.25925827,228.92,228.86,20.0]
[1732637245764,24.25925827,228.9,228.86,20.0]
[1732637245969,24.25925827,228.9,228.83,24.25925827]
[1732637246187,24.25925827,228.9,228.81,24.25925827]
[1732637246383,24.25925827,228.88,228.81,24.25925827]
[1732637246585,24.25925827,228.9,228.81,24.25925827]
[1732637246792,24.25925827,228.9,228.82,4.3702]
[1732637246967,24.25925827,228.92,228.84,20.0]
[1732637247167,24.25925827,228.92,228.83,24.25925827]
[1732637247168,24.25925827,228.88,228.82,4.3702]
[1732637247470,24.25925827,228.9,228.81,28.62955827]
[1732637248577,24.25925827,228.88,228.81,4.3703]
[1732637248777,24.25925827,228.88,228.79,24.25925827]
[1732637248778,24.25925827,228.82,228.73,28.63115827]
[1732637248980,24.25925827,228.8,228.73,4.3719]
[1732637249888,24.25925827,228.84,228.77,24.25925827]
[1732637250093,24.25925827,228.88,228.81,24.25925827]
[1732637250394,24.25925827,228.91,228.83,24.25925827]
[1732637250705,24.25925827,228.95,228.87,24.25925827]
[1732637251488,24.25925827,228.97,228.89,24.25925827]
[1732637251789,28.62665827,228.97,228.89,24.25925827]
[1732637252498,24.25925827,228.95,228.87,24.25925827]
[1732637253496,24.77544157,228.93,228.85,28.62875827]
[1732637253787,24.25925827,228.89,228.83,4.3698]
[1732637254571,4.8843833,228.93,228.83,28.62905827]
[1732637254572,24.25925827,228.91,228.83,28.62905827]
[1732637254787,29.14364157,228.93,228.83,28.62905827]
[1732637255198,24.25925827,228.91,228.83,28.62905827]
[1732637255373,28.62775827,228.91,228.83,28.62905827]
[1732637255701,24.25925827,228.91,228.83,28.62905827]
[1732637256071,24.77544157,228.93,228.85,24.25925827]
[1732637256693,0.5161833,228.93,228.87,24.25925827]
[1732637257082,0.5161833,228.93,228.89,24.25925827]
[1732637257284,0.5161833,228.93,228.89,28.62805827]
[1732637258895,24.77544157,228.93,228.87,16.0889]
[1732637259198,29.14354157,228.93,228.86,4.3693]
[1732637259501,29.14354157,228.93,228.86,24.3693]
[1732637260078,24.77544157,228.93,228.86,24.3693]
[1732637261804,0.5161833,228.93,228.91,24.25925827]
[1732637262997,0.5161833,228.93,228.91,48.51851654]
[1732637263308,0.5161833,228.93,228.92,28.145184]
[1732637264214,0.5161833,228.93,228.92,4.3683]
[1732637265984,0.5161833,228.93,228.92,34.365784]
[1732637267989,0.5161833,228.93,228.92,10.5889]
[1732637268707,0.5161833,228.93,228.92,4.3683]
[1732637270496,0.5161833,228.93,228.92,20.0]
[1732637270812,4.8843833,228.93,228.87,24.25925827]
[1732637270989,0.5161833,228.93,228.87,24.25925827]
[1732637271698,0.5161833,228.93,228.87,28.62845827]
[1732637271886,0.5161833,228.93,228.9,24.25925827]
[1732637272508,0.5161833,228.93,228.92,48.03614227]
[1732637273588,4.3652,229.08,228.96,20.0]
[1732637273801,4.3652,229.08,229.02,24.25925827]
[1732637275002,24.25925827,229.09,228.96,20.0]
[1732637275003,4.3651,229.09,228.96,20.0]
[1732637275291,0.5161833,229.16,229.08,24.25925827]
[1732637275497,0.5161833,229.16,229.02,24.25925827]
[1732637275498,4.8798833,229.16,229.1,24.25925827]
[1732637275702,4.8798833,229.16,229.12,24.25925827]
[1732637275896,4.8798833,229.16,229.1,24.25925827]
[1732637276497,0.5161833,229.16,229.12,24.25925827]
[1732637278016,4.8799833,229.16,229.12,24.25925827]
[1732637278308,0.5161833,229.16,229.14,24.25925827]
[1732637279013,0.5161833,229.16,229.12,24.25925827]
[1732637280012,0.5161833,229.16,229.14,24.25925827]
[1732637280195,4.8798833,229.16,229.1,24.25925827]
[1732637280515,0.5161833,229.16,229.1,24.25925827]
[1732637280842,0.5161833,229.16,229.07,24.25925827]
[1732637281019,24.25925827,229.15,229.07,24.25925827]
[1732637282597,0.5161833,229.16,229.15,24.25925827]
[1732637282812,0.5161833,229.16,229.14,24.25925827]
[1732637283019,0.5161833,229.16,229.15,24.25925827]
[1732637283326,0.5161833,229.16,229.15,52.40004227]
[1732637285904,0.5161833,229.16,229.15,28.62315827]
[1732637287496,0.5161833,229.16,229.15,52.40004227]
[1732637287901,28.61975827,229.33,229.2,23.776884]
[1732637288106,24.25925827,229.29,229.22,24.25925827]
[1732637288350,24.25925827,229.29,229.2,24.25925827]
[1732637288525,24.25925827,229.28,229.21,24.25925827]
[1732637289226,4.3597,229.37,229.27,24.25925827]
[1732637289402,28.61895827,229.37,229.29,24.25925827]
[1732637289722,28.61895827,229.37,229.25,15.0509]
[1732637289723,24.25925827,229.33,229.25,24.25925827]
[1732637290319,24.25925827,229.33,229.25,28.62125827]
[1732637290608,24.25925827,229.37,229.29,24.25925827]
[1732637290817,4.8756833,229.38,229.31,24.25925827]
[1732637291436,0.5161833,229.38,229.31,24.25925827]
[1732637291607,0.5161833,229.38,229.31,28.62005827]
[1732637292423,24.25925827,229.33,229.25,24.25925827]
[1732637292631,24.25925827,229.31,229.23,24.25925827]
[1732637292812,24.25925827,229.31,229.22,4.3624]
[1732637293121,24.25925827,229.29,229.22,4.3624]
[1732637293601,24.25925827,229.29,229.23,24.25925827]
[1732637294111,24.12072142,229.29,229.21,24.12072142]
[1732637294304,24.12072142,229.29,229.19,10.9561]
[1732637294305,24.12072142,229.27,229.22,20.0]
[1732637294927,24.12072142,229.31,229.23,24.12072142]
[1732637295301,24.12072142,229.29,229.21,24.12072142]
[1732637295504,24.12072142,229.31,229.24,24.12072142]
[1732637295932,24.12072142,229.31,229.24,28.48292142]
[1732637296226,24.12072142,229.33,229.24,28.48292142]
[1732637298013,24.12072142,229.3,229.25,20.0]
[1732637299437,28.48142142,229.32,229.25,20.0]
[1732637300152,28.48142142,229.32,229.16,12.70388159]
[1732637300153,24.12072142,229.27,229.16,24.12072142]
[1732637300439,24.12072142,229.27,229.18,24.12072142]
[1732637300618,24.12072142,229.28,229.2,24.12072142]
[1732637300816,24.12072142,229.26,229.18,24.12072142]
[1732637301342,28.48232142,229.28,229.2,24.12072142]
[1732637301640,28.48232142,229.28,229.18,24.12072142]
[1732637301953,23.776884,229.27,229.16,24.12072142]
[1732637302238,24.12072142,229.27,229.18,24.12072142]
[1732637302446,24.12072142,229.25,229.18,24.12072142]
[1732637302648,24.12072142,229.25,229.12,4.3645]
[1732637302649,24.12072142,229.25,229.16,24.12072142]
[1732637303030,28.48282142,229.25,229.18,24.12072142]
[1732637303366,28.48282142,229.25,229.13,4.3643]
[1732637303367,28.48282142,229.25,229.16,24.12072142]
[1732637303723,28.48282142,229.25,229.18,24.12072142]
[1732637304545,4.3621,229.25,229.18,24.12072142]
[1732637304752,24.12072142,229.27,229.2,24.12072142]
[1732637304933,24.12072142,229.29,229.2,24.12072142]
[1732637305538,24.12072142,229.29,229.23,20.0]
[1732637306651,28.48202142,229.29,229.22,24.12072142]
[1732637306845,28.48092142,229.35,229.26,24.12072142]
[1732637307056,4.8758833,229.38,229.3,24.12072142]
[1732637307930,24.12072142,229.37,229.28,24.12072142]
[1732637308141,4.3599,229.36,229.28,24.12072142]
[1732637308556,4.3599,229.36,229.28,20.0]
[1732637308557,28.46952627,229.36,229.28,20.0]
[1732637308848,28.46952627,229.36,229.3,20.0]
[1732637309048,24.10962627,229.32,229.23,24.10962627]
[1732637309229,24.10962627,229.32,229.14,19.99451493]
[1732637309230,24.10962627,229.28,229.19,24.10962627]
[1732637309427,24.10962627,229.26,229.17,24.10962627]
[1732637309644,5.0,229.32,229.14,4.3641]
[1732637309645,24.10962627,229.24,229.15,24.10962627]
[1732637309829,24.10962627,229.24,229.17,24.10962627]
[1732637310028,24.10962627,229.24,229.15,24.10962627]
[1732637310230,24.10962627,229.2,229.13,24.10962627]
[1732637310632,24.10962627,229.2,229.12,4.3643]
[1732637310937,4.3624,229.23,229.15,24.10962627]
[1732637310938,24.10962627,229.22,229.15,24.10962627]
[1732637311546,4.3626,229.22,229.15,24.10962627]
[1732637312254,24.10962627,229.24,229.15,24.10962627]
[1732637312454,28.47192627,229.24,229.15,28.47342627]
[1732637313551,24.10962627,229.22,229.13,24.10962627]
[1732637314255,24.10962627,229.22,229.15,24.10962627]
[1732637314442,4.3623,229.24,229.17,24.10962627]
[1732637314644,24.10962627,229.28,229.21,24.10962627]
[1732637314855,10.7221,229.29,229.21,24.10962627]
[1732637315445,10.7221,229.29,229.21,28.47232627]
[1732637315839,10.7221,229.29,229.21,24.10962627]
[1732637316453,24.10962627,229.28,229.21,24.10962627]
[1732637316755,24.10962627,229.24,229.2,20.0]
[1732637316961,24.10962627,229.24,229.15,28.47352627]
[1732637317248,24.10962627,229.24,229.18,20.0]
[1732637317436,4.3624,229.23,229.18,20.0]
[1732637317640,24.10962627,229.22,229.15,4.3639]
[1732637317951,24.10962627,229.22,229.13,48.47372627]
[1732637318155,4.3624,229.23,229.15,24.10962627]
[1732637318390,28.47182627,229.24,229.15,24.10962627]
[1732637318658,28.47182627,229.24,229.17,24.10962627]
[1732637319756,24.10962627,229.26,229.17,28.47312627]
[1732637319953,24.10962627,229.26,229.12,10.9111]
[1732637319954,24.10962627,229.24,229.15,24.10962627]
[1732637320148,24.10962627,229.24,229.17,24.10962627]
[1732637320454,28.47102627,229.28,229.19,24.10962627]
[1732637321638,24.10962627,229.26,229.17,44.10962627]
[1732637322850,4.362,229.25,229.17,48.47302627]
[1732637323233,4.362,229.25,229.14,23.776884]
[1732637323234,24.10962627,229.22,229.18,20.0]
[1732637323763,24.10962627,229.22,229.14,23.776884]
[1732637324244,24.10962627,229.22,229.15,4.3639]
[1732637324552,28.47222627,229.22,229.14,4.3641]
[1732637325158,24.10962627,229.2,229.14,20.0]
[1732637326456,24.10962627,229.2,229.14,24.3641]